bitfinex/quotes_SOLUSD_20250507
["timestamp","ask_amount","ask_price","bid_price","bid_amount"]
[1746648008479,25.26876305,145.91,145.9,0.2626]
[1746648008703,136.8,145.93,145.9,0.2626]
[1746648009084,17.34,145.95,145.91,25.26876305]
[1746648009317,8.40691555,145.97,145.93,25.26876305]
[1746648009522,51.0156786,145.97,145.93,25.26876305]
[1746648010010,17.34,145.97,145.94,25.26876305]
[1746648010176,17.34,145.97,145.95,25.26876305]
[1746648010377,25.26876305,145.96,145.92,25.26876305]
[1746648010687,42.60876305,145.97,145.93,25.26876305]
[1746648010874,24.1908274,145.97,145.94,25.26876305]
[1746648011076,49.45959045,145.97,145.91,6.85342426]
[1746648011301,25.26876305,145.96,145.92,25.26876305]
[1746648011506,25.26876305,145.94,145.9,25.53136305]
[1746648011692,32.12076327,145.95,145.91,25.26876305]
[1746648012313,25.26876305,145.94,145.9,25.53136305]
[1746648012610,32.12076327,145.95,145.91,25.26876305]
[1746648012905,26.99592462,146.02,145.94,25.26876305]
[1746648012906,6.84884596,146.01,145.94,25.26876305]
[1746648013094,6.84884596,146.01,145.96,25.26876305]
[1746648013324,25.26876305,146.0,145.96,25.26876305]
[1746648013506,6.84978423,145.99,145.95,25.26876305]
[1746648013716,32.11854728,145.99,145.95,25.26876305]
[1746648014212,6.84884596,146.01,145.97,25.26876305]
[1746648014379,6.84884596,146.01,145.98,25.26876305]
[1746648014586,6.8485721,146.02,145.98,25.26876305]
[1746648014794,32.11733515,146.02,145.98,25.26876305]
[1746648014999,25.26876305,146.01,145.97,25.26876305]
[1746648015184,25.26876305,146.0,145.96,25.26876305]
[1746648015381,32.11845175,146.0,145.95,25.26876305]
[1746648016008,25.26876305,145.98,145.94,25.26876305]
[1746648016380,25.26876305,145.99,145.95,25.26876305]
[1746648016698,32.11845175,146.0,145.95,25.26876305]
[1746648017295,143.64887974,146.01,145.97,25.26876305]
[1746648017508,6.84887974,146.01,145.97,25.26876305]
[1746648017803,32.11764279,146.01,145.97,25.26876305]
[1746648018608,6.84887974,146.01,145.97,25.26876305]
[1746648018815,32.11764279,146.01,145.97,25.26876305]
[1746648019312,25.26876305,146.0,145.95,25.26876305]
[1746648019608,25.26876305,146.0,145.93,6.6629]
[1746648019609,25.26876305,145.98,145.94,25.26876305]
[1746648019997,32.11900582,145.99,145.94,25.26876305]
[1746648020511,25.26876305,145.98,145.93,6.6629]
[1746648020723,25.26876305,145.97,145.93,25.26876305]
[1746648021200,25.26876305,145.96,145.92,25.26876305]
[1746648021513,32.12089406,145.94,145.9,25.26876305]
[1746648021709,32.12089406,145.94,145.89,31.32326305]
[1746648021895,25.26876305,145.9,145.85,1.5878]
[1746648022101,41.32245854,145.94,145.85,26.85656305]
[1746648022102,25.26876305,145.89,145.85,26.85656305]
[1746648022289,25.26876305,145.88,145.83,13.01572274]
[1746648022608,25.26876305,145.87,145.83,6.1586]
[1746648022810,138.455,145.92,145.84,25.26876305]
[1746648023015,41.32245854,145.94,145.87,25.26876305]
[1746648023016,136.8,145.91,145.87,25.26876305]
[1746648023194,160.99213101,145.94,145.9,25.26876305]
[1746648023400,17.34,145.94,145.91,25.26876305]
[1746648023607,17.34,145.94,145.92,25.26876305]
[1746648023912,32.12006378,145.96,145.92,25.26876305]
[1746648024110,32.12006378,145.96,145.91,25.26876305]
[1746648024813,25.26876305,145.96,145.92,25.26876305]
[1746648025403,6.85075166,145.97,145.92,25.26876305]
[1746648025606,25.26876305,145.96,145.92,32.12171878]
[1746648026127,154.14,145.98,145.93,25.26876305]
[1746648026426,162.06876305,145.98,145.94,25.26876305]
[1746648026714,42.60876305,145.99,145.95,25.26876305]
[1746648026898,42.60876305,145.99,145.92,23.98563116]
[1746648026899,17.34,145.99,145.96,25.26876305]
[1746648027826,17.34,145.99,145.97,25.26876305]
[1746648028333,17.34,145.99,145.93,0.2626]
[1746648028334,25.26876305,145.98,145.94,32.12070873]
[1746648029722,17.34,145.99,145.96,25.26876305]
[1746648029925,17.34,145.99,145.95,6.8514421]
[1746648029926,25.26876305,145.99,145.95,32.12020515]
[1746648031324,32.11867105,145.99,145.95,25.26876305]
[1746648032100,25.26876305,145.96,145.93,0.2626]
[1746648032307,25.26876305,145.95,145.93,0.2626]
[1746648032730,25.26876305,145.96,145.93,0.2626]
[1746648032915,25.26876305,145.97,145.93,25.53136305]
[1746648033108,25.26876305,145.97,145.93,32.38375867]
[1746648033311,25.26876305,145.97,145.93,25.53136305]
[1746648033724,25.26876305,145.96,145.93,25.53136305]
[1746648035131,32.11998156,145.96,145.93,0.2626]
[1746648036117,32.11998156,145.96,145.93,25.53136305]
[1746648037433,25.26876305,145.95,145.93,0.2626]
[1746648037645,32.11998156,145.96,145.93,0.2626]
[1746648038243,25.26876305,145.95,145.93,0.2626]
[1746648038535,25.26876305,145.94,145.93,0.2626]
[1746648039334,41.31919877,145.96,145.93,0.2626]
[1746648039538,25.26876305,145.94,145.93,0.2626]
[1746648040735,32.12089406,145.94,145.93,0.2626]
[1746648041148,6.85213101,145.94,145.93,0.2626]
[1746648041312,25.26876305,145.95,145.93,0.2626]
[1746648041313,6.85172817,145.95,145.93,0.2626]
[1746648041517,17.34,145.96,145.93,0.2626]
[1746648041518,42.60876305,145.96,145.93,0.2626]
[1746648041841,49.46015569,145.96,145.93,0.5356]
[1746648042212,24.19139264,145.96,145.93,0.5356]
[1746648042418,24.19139264,145.96,145.93,25.80436305]
[1746648043238,49.46015569,145.96,145.93,0.5356]
[1746648044442,24.19139264,145.96,145.93,25.80436305]
[1746648045952,136.8,145.98,145.94,25.26876305]
[1746648045953,143.65041566,145.98,145.94,25.26876305]
[1746648046614,6.85041566,145.98,145.94,25.26876305]
[1746648047238,6.85041566,145.98,145.95,25.26876305]
[1746648047615,32.11917871,145.98,145.94,25.26876305]
[1746648047921,32.11917871,145.98,145.93,25.80436305]
[1746648048109,25.26876305,145.97,145.93,25.80436305]
[1746648048538,25.26876305,145.97,145.93,0.273]
[1746648049242,25.26876305,145.96,145.93,0.273]
[1746648049615,25.26876305,145.97,145.93,0.273]
[1746648050017,17.12515203,145.99,145.93,25.54176305]
[1746648050018,6.8511921,145.96,145.93,25.54176305]
[1746648050334,17.3,146.0,145.95,25.26876305]
[1746648050636,25.26876305,146.01,145.97,25.26876305]
[1746648051219,25.26876305,146.0,145.96,25.26876305]
[1746648051441,6.84978423,145.99,145.96,25.26876305]
[1746648052048,6.84950523,146.0,145.97,25.26876305]
[1746648052345,17.3,146.02,145.96,6.85116658]
[1746648052537,24.14839078,146.02,145.99,25.26876305]
[1746648053125,17.3,146.02,146.0,25.26876305]
[1746648053329,6.84763622,146.04,146.01,25.26876305]
[1746648057155,25.26876305,146.02,145.98,6.2457]
[1746648057448,25.26876305,146.02,145.98,31.51446305]
[1746648057622,25.26876305,146.03,145.99,25.26876305]
[1746648057825,25.26876305,146.02,145.98,31.51446305]
[1746648058626,6.84884596,146.01,145.98,31.51446305]
[1746648059054,32.11760901,146.01,145.97,25.26876305]
[1746648059258,25.26876305,146.0,145.96,25.26876305]
[1746648059443,25.26876305,146.0,145.95,25.26876305]
[1746648060052,25.26876305,146.0,145.96,25.26876305]
[1746648060832,6.84978423,145.99,145.96,25.26876305]
[1746648062335,6.84978423,145.99,145.94,59.30766305]
[1746648062336,25.26876305,145.98,145.94,59.30766305]
[1746648062530,25.26876305,145.98,145.94,57.76636305]
[1746648062735,6.85072275,145.97,145.96,0.273]
[1746648062945,32.1194858,145.97,145.96,0.273]
[1746648064356,6.85072275,145.97,145.96,0.273]
[1746648064863,6.85025345,145.98,145.96,0.273]
[1746648065057,32.1190165,145.98,145.96,0.273]
[1746648065862,6.84931506,146.0,145.96,25.80436305]
[1746648066159,6.84931506,146.0,145.97,25.26876305]
[1746648068054,6.84931506,146.0,145.96,25.53136305]
[1746648068055,32.11807811,146.0,145.96,25.53136305]
[1746648068386,25.26876305,145.97,145.96,0.2626]
[1746648068759,25.26876305,145.98,145.96,0.2626]
[1746648069345,160.77260273,146.0,145.96,0.2626]
[1746648069553,186.04136578,146.0,145.96,25.53136305]
[1746648069833,168.91807811,146.0,145.96,25.53136305]
[1746648070262,143.64931506,146.0,145.97,25.26876305]
[1746648070861,136.8,146.0,145.98,25.26876305]
[1746648071053,24.12888873,146.01,145.99,25.26876305]
[1746648071363,6.84856093,146.02,145.99,25.26876305]
[1746648071686,6.84856093,146.02,146.0,25.26876305]
[1746648072677,6.84856093,146.02,145.99,25.26876305]
[1746648073345,32.11732398,146.02,145.98,25.26876305]
[1746648073555,25.26876305,146.01,145.96,0.2626]
[1746648073773,25.26876305,146.0,145.96,25.53136305]
[1746648074077,32.11854728,145.99,145.96,0.2626]
[1746648075076,25.26876305,145.98,145.96,0.2626]
[1746648075903,25.26876305,145.97,145.96,0.2626]
[1746648076076,32.1194858,145.97,145.96,0.2626]
[1746648078455,50.91129623,145.97,145.96,0.2626]
[1746648078667,51.04278112,145.97,145.96,0.2626]
[1746648078856,102.31154417,145.97,145.96,0.2626]
[1746648079069,153.69196479,145.97,145.89,6.4412]
[1746648079249,25.26876305,145.9,145.89,6.4412]
[1746648079977,32.12277264,145.9,145.89,6.4412]
[1746648081484,32.12277264,145.9,145.89,6.7142]
[1746648082074,23.9857456,145.92,145.89,6.7142]
[1746648082467,6.85307017,145.92,145.89,0.273]
[1746648082671,32.12183322,145.92,145.89,0.273]
[1746648083876,25.26876305,145.91,145.89,0.273]
[1746648084882,32.12183322,145.92,145.89,0.273]
[1746648086602,6.85307017,145.92,145.89,0.273]
[1746648086885,32.12183322,145.92,145.89,0.273]
[1746648088671,6.85307017,145.92,145.89,0.273]
[1746648089573,24.11270105,145.93,145.9,25.26876305]
[1746648089967,24.11270105,145.93,145.89,25.54176305]
[1746648090167,49.3814641,145.93,145.89,25.54176305]
[1746648090869,25.26876305,145.91,145.84,26.0]
[1746648091194,24.11270105,145.93,145.86,25.26876305]
[1746648091195,25.26876305,145.9,145.86,25.26876305]
[1746648091968,6.8544794,145.89,145.86,25.26876305]
[1746648092166,25.26876305,145.88,145.83,32.12586932]
[1746648092375,25.26876305,145.88,145.83,58.12586932]
[1746648092668,25.26876305,145.88,145.83,32.12586932]
[1746648093298,32.12399679,145.88,145.83,58.12586932]
[1746648094190,6.85523374,145.88,145.84,25.26876305]
[1746648094494,25.26876305,145.88,145.84,25.26876305]
[1746648094664,25.26876305,145.87,145.83,51.26876305]
[1746648094990,25.26876305,145.87,145.79,82.5]
[1746648095191,25.26876305,145.87,145.83,25.26876305]
[1746648095569,25.26876305,145.86,145.82,51.26876305]
[1746648095891,25.26876305,145.87,145.83,25.26876305]
[1746648096200,136.8,145.89,145.83,25.26876305]
[1746648096368,25.26876305,145.88,145.84,25.26876305]
[1746648096571,143.65480159,145.89,145.85,25.26876305]
[1746648096979,136.8,145.89,145.87,25.26876305]
[1746648097176,6.85405917,145.9,145.87,25.26876305]
[1746648098894,6.85405917,145.9,145.84,6.6334]
[1746648098895,0.12594162,145.88,145.86,6.85579124]
[1746648099993,0.12594162,145.88,145.87,25.26876305]
[1746648101298,0.12594162,145.88,145.85,25.26876305]
[1746648102099,0.12594162,145.88,145.87,0.273]
[1746648102791,6.98089089,145.88,145.87,0.273]
[1746648103006,32.24965394,145.88,145.87,0.273]
[1746648104280,6.98089089,145.88,145.87,0.273]
[1746648104484,0.12594162,145.88,145.87,0.273]
[1746648105672,0.12594162,145.88,145.87,25.54176305]
[1746648106089,0.12594162,145.88,145.87,32.39718225]
[1746648107379,0.12594162,145.88,145.87,57.6659453]
[1746648108901,0.12594162,145.88,145.87,32.39718225]
[1746648109279,0.12594162,145.88,145.87,25.54176305]
[1746648109691,0.12594162,145.88,145.87,0.273]
[1746648110498,0.12594162,145.88,145.87,25.54176305]
[1746648112602,0.12594162,145.88,145.87,0.273]
[1746648118495,0.12594162,145.88,145.87,32.39718225]
[1746648118696,0.27451415,145.88,145.87,32.39718225]
[1746648118895,0.14857253,145.88,145.87,25.54176305]
[1746648119811,0.14857253,145.88,145.87,0.273]
[1746648121117,32.27228485,145.88,145.87,0.273]
[1746648122608,33.93568485,145.88,145.87,0.273]
[1746648122810,51.17568485,145.88,145.87,0.273]
[1746648126101,76.4444479,145.88,145.87,0.273]
[1746648126494,95.23625833,145.88,145.87,0.273]
[1746648130400,121.23625833,145.88,145.77,31.32706305]
[1746648130599,25.26876305,145.8,145.74,8.3821267]
[1746648130800,25.26876305,145.8,145.76,25.26876305]
[1746648131399,6.85918101,145.79,145.76,25.26876305]
[1746648132022,32.12753212,145.8,145.76,25.26876305]
[1746648133026,6.85876907,145.8,145.76,25.26876305]
[1746648133325,6.85842505,145.81,145.78,25.26876305]
[1746648135324,25.26876305,145.8,145.76,25.26876305]
[1746648135634,6.85918101,145.79,145.76,25.26876305]
[1746648136614,6.85918101,145.79,145.75,25.26876305]
[1746648136817,32.12794406,145.79,145.74,51.26876305]
[1746648137329,32.12794406,145.79,145.74,26.0]
[1746648137536,32.12794406,145.79,145.74,51.26876305]
[1746648137739,25.26876305,145.78,145.74,51.26876305]
[1746648138111,25.26876305,145.77,145.73,6.072]
[1746648138425,25.26876305,145.77,145.73,25.26876305]
[1746648138719,0.14204663,145.74,145.73,25.26876305]
[1746648139717,0.14204663,145.74,145.71,9.36119471]
[1746648139916,0.14204663,145.74,145.73,25.26876305]
[1746648140136,0.14204663,145.74,145.71,9.36119471]
[1746648140309,0.14204663,145.74,145.72,25.26876305]
[1746648140512,0.14204663,145.74,145.73,25.26876305]
[1746648141035,7.00358086,145.74,145.71,0.9539762]
[1746648141635,32.27234391,145.74,145.71,0.9539762]
[1746648142938,7.00358086,145.74,145.71,26.22273925]
[1746648144040,32.27234391,145.74,145.71,0.9539762]
[1746648144343,7.00358086,145.74,145.72,25.26876305]
[1746648144526,7.00358086,145.74,145.71,26.22273925]
[1746648144837,0.14204663,145.74,145.71,26.22273925]
[1746648145045,0.14204663,145.74,145.73,25.26876305]
[1746648146219,0.14204663,145.74,145.73,32.13076812]
[1746648146421,0.14204663,145.74,145.73,6.86200507]
[1746648146625,0.14204663,145.74,145.73,32.13076812]
[1746648147341,0.14204663,145.74,145.73,76.1913416]
[1746648147641,0.14565804,145.75,145.74,18.79181043]
[1746648147826,0.14565804,145.75,145.74,69.32933653]
[1746648148234,0.14565804,145.75,145.74,76.19087076]
[1746648148436,0.13122419,145.77,145.76,44.79181043]
[1746648148641,0.13122419,145.77,145.76,70.06057348]
[1746648148942,0.13122419,145.77,145.76,51.26876305]
[1746648149848,0.13122419,145.77,145.76,70.06057348]
[1746648150343,0.13122419,145.77,145.76,76.92116623]
[1746648151046,0.13122419,145.77,145.76,58.1293558]
[1746648152351,0.13122419,145.77,145.76,51.26876305]
[1746648152535,0.13122419,145.77,145.76,26.0]
[1746648152733,0.13122419,145.77,145.76,51.26876305]
[1746648155050,0.13122419,145.77,145.76,58.1293558]
[1746648158622,0.26937191,145.77,145.76,58.1293558]
[1746648159039,0.13814772,145.77,145.76,58.1293558]
[1746648160451,0.13814772,145.77,145.73,26.0]
[1746648160637,0.13814772,145.77,145.74,25.26876305]
[1746648161654,0.13814772,145.77,145.75,25.26876305]
[1746648161833,0.13814772,145.77,145.76,25.26876305]
[1746648167654,0.13814772,145.77,145.76,32.1293558]
[1746648168946,0.13814772,145.77,145.76,25.26876305]
[1746648169728,0.13814772,145.77,145.76,15.82379001]
[1746648170656,0.13814772,145.77,145.75,15.82379001]
[1746648171051,0.13814772,145.77,145.73,26.0]
[1746648171356,6.99827861,145.77,145.74,15.82379001]
[1746648172362,6.99827861,145.77,145.75,15.82379001]
[1746648173657,6.99827861,145.77,145.74,15.82379001]
[1746648173960,0.13814772,145.77,145.74,15.82379001]
[1746648175740,6.99831134,145.77,145.74,15.82379001]
[1746648176558,0.13814772,145.77,145.74,15.82379001]
[1746648176760,0.13814772,145.77,145.74,22.68521951]
[1746648177061,0.13814772,145.77,145.76,15.82379001]
[1746648178063,0.13814772,145.77,145.76,22.68438276]
[1746648178257,0.13814772,145.77,145.76,15.82379001]
[1746648178445,0.13814772,145.77,145.74,6.86135381]
[1746648178644,0.27432108,145.77,145.76,15.82379001]
[1746648179046,0.13617336,145.77,145.76,15.82379001]
[1746648180163,0.13617336,145.77,145.75,15.82379001]
[1746648180363,6.99635998,145.77,145.74,15.82379001]
[1746648180964,0.13617336,145.77,145.75,15.82379001]
[1746648181140,0.13617336,145.77,145.76,15.82379001]
[1746648182773,0.13617336,145.77,145.74,6.86132922]
[1746648182973,0.13617336,145.77,145.75,15.82379001]
[1746648183154,0.13617336,145.77,145.74,15.82379001]
[1746648183670,15.95996337,145.77,145.73,15.82379001]
[1746648183974,6.99635124,145.77,145.73,15.82379001]
[1746648185371,22.82014125,145.77,145.72,15.82379001]
[1746648185746,15.82379001,145.76,145.71,0.9539762]
[1746648185947,15.82379001,145.75,145.71,0.9539762]
[1746648186856,6.99635124,145.77,145.71,7.81685774]
[1746648187271,6.99635124,145.77,145.74,15.82379001]
[1746648187455,6.99635124,145.77,145.71,7.81685774]
[1746648187662,6.99635124,145.77,145.73,15.82379001]
[1746648188779,22.82014125,145.77,145.72,15.82379001]
[1746648190279,22.82014125,145.77,145.72,22.68623037]
[1746648190578,6.99635124,145.77,145.73,15.82379001]
[1746648190768,0.13617336,145.77,145.74,15.82379001]
[1746648190971,6.99630659,145.77,145.74,15.82379001]
[1746648191377,0.13617336,145.77,145.74,15.82379001]
[1746648191981,0.13617336,145.77,145.75,15.82379001]
[1746648192686,0.13617336,145.77,145.76,15.82379001]
[1746648193366,0.13617336,145.77,145.76,22.68438276]
[1746648197783,0.13617336,145.77,145.76,48.68438276]
[1746648198096,0.13617336,145.77,145.76,67.47619319]
[1746648198790,0.26048173,145.77,145.76,67.47619319]
[1746648198999,0.12430837,145.77,145.76,67.47619319]
[1746648199156,0.13693563,145.78,145.77,18.79181043]
[1746648199358,0.13693563,145.78,145.77,34.61560044]
[1746648199965,0.13693563,145.78,145.77,41.47572255]
[1746648201083,0.14206809,145.8,145.79,52.49681043]
[1746648201399,0.13001536,145.81,145.79,58.14439045]
[1746648201563,0.13001536,145.81,145.8,31.64758002]
[1746648201895,0.1357406,145.84,145.81,32.85824017]
[1746648202094,0.1357406,145.84,145.81,38.50582019]
[1746648202301,0.1357406,145.84,145.83,44.64964886]
[1746648202617,17.16,145.92,145.83,60.61560044]
[1746648202895,136.8,145.94,145.87,26.0]
[1746648203094,25.67689735,145.95,145.92,15.82379001]
[1746648203256,25.67689735,145.95,145.91,15.82379001]
[1746648203457,6.85124947,145.96,145.93,15.82379001]
[1746648203674,22.67422162,145.98,145.94,15.82379001]
[1746648204188,22.67422162,145.98,145.91,6.85353985]
[1746648204397,15.82379001,145.97,145.91,6.85353985]
[1746648204568,15.82379001,145.97,145.93,15.82379001]
[1746648205269,22.67422162,145.98,145.94,15.82379001]
[1746648205665,15.82379001,145.97,145.93,15.82379001]
[1746648205864,25.25855006,145.97,145.93,25.25855006]
[1746648206089,32.10957601,145.97,145.93,25.25855006]
[1746648206472,25.25855006,145.96,145.91,25.25855006]
[1746648206687,6.85102595,145.97,145.91,25.25855006]
[1746648206890,25.25855006,145.95,145.91,25.25855006]
[1746648207389,25.25855006,145.93,145.89,51.25855006]
[1746648207588,25.25855006,145.92,145.88,25.25855006]
[1746648207787,25.25855006,145.92,145.87,25.25855006]
[1746648207981,6.85353985,145.91,145.87,51.25855006]
[1746648208187,6.85353985,145.91,145.88,25.25855006]
[1746648209770,17.14,145.94,145.9,25.25855006]
[1746648209970,17.14,145.94,145.93,25.25855006]
[1746648210269,6.85219826,145.94,145.91,25.25855006]
[1746648210678,32.11074832,145.94,145.87,44.79181043]
[1746648210881,6.85219826,145.94,145.9,25.25855006]
[1746648211081,25.25855006,145.96,145.92,25.25855006]
[1746648211279,25.25855006,145.97,145.92,25.25855006]
[1746648211793,25.25855006,145.96,145.92,25.25855006]
[1746648212401,25.25855006,145.95,145.91,25.25855006]
[1746648212573,25.25855006,145.95,145.9,25.25855006]
[1746648212772,25.25855006,145.93,145.89,25.25855006]
[1746648213182,25.25855006,145.92,145.88,25.25855006]
[1746648213392,25.25855006,145.91,145.87,51.25855006]
[1746648213706,136.8,145.96,145.85,18.79181043]
[1746648214006,25.25855006,145.94,145.89,25.25855006]
[1746648214175,136.8,145.95,145.9,25.25855006]
[1746648214369,136.8,145.95,145.88,51.25855006]
[1746648214370,6.85307017,145.92,145.88,51.25855006]
[1746648214875,32.11162023,145.92,145.88,51.25855006]
[1746648216297,23.98245854,145.94,145.88,51.25855006]
[1746648216669,25.25855006,145.93,145.88,51.25855006]
[1746648216972,25.25855006,145.93,145.89,25.25855006]
[1746648218104,6.85213101,145.94,145.92,25.25855006]
[1746648218702,6.98106189,145.93,145.92,25.25855006]
[1746648219483,0.12846133,145.93,145.92,25.25855006]
[1746648227990,0.12846133,145.93,145.92,50.90343066]
[1746648229840,0.13010062,145.94,145.93,18.79181043]
[1746648230107,0.13799978,145.96,145.95,44.79181043]
[1746648230427,0.13799978,145.96,145.95,177.80891055]
[1746648231100,0.12974365,145.97,145.96,25.64300253]
[1746648231298,0.12974365,145.97,145.96,50.90155259]
[1746648231809,0.12939247,145.99,145.98,51.23361043]
[1746648232016,0.12939247,145.99,145.98,158.99216049]
[1746648233315,0.12939247,145.99,145.98,165.84241394]
[1746648233703,0.12955646,146.02,145.99,18.79181043]
[1746648233909,0.12955646,146.02,145.99,70.86291055]
[1746648234299,0.12955646,146.02,146.01,44.79181043]
[1746648234521,0.12955646,146.02,146.01,177.80891055]
[1746648234813,6.84509548,146.09,146.05,26.0]
[1746648235019,6.84509548,146.09,146.08,25.25855006]
[1746648236323,10.94056383,146.1,146.08,25.25855006]
[1746648236515,10.94056383,146.1,146.09,25.25855006]
[1746648237528,10.94056383,146.1,146.08,25.25855006]
[1746648238617,0.1339587,146.09,146.08,25.25855006]
[1746648238814,6.97905418,146.09,146.08,25.25855006]
[1746648240222,0.1339587,146.09,146.08,25.25855006]
[1746648240603,0.1339587,146.09,146.08,95.30891055]
[1746648241616,0.1339587,146.09,146.08,70.05036049]
[1746648242624,0.1339587,146.09,146.08,95.30891055]
[1746648243023,0.1339587,146.09,146.08,70.05036049]
[1746648243598,0.1339587,146.09,146.08,51.25855006]
[1746648243800,6.97905418,146.09,146.08,26.0]
[1746648244318,0.1339587,146.09,146.08,51.25855006]
[1746648245211,6.97905418,146.09,146.06,25.25855006]
[1746648245418,25.25855006,146.08,146.04,18.64964886]
[1746648245621,25.25855006,146.08,146.04,43.90819892]
[1746648245936,32.23760424,146.09,146.05,25.25855006]
[1746648246619,25.25855006,146.07,146.03,25.25855006]
[1746648246921,25.25855006,146.06,146.02,25.25855006]
[1746648247129,6.84697021,146.05,146.02,25.25855006]
[1746648247328,6.84697021,146.05,146.04,26.0]
[1746648247541,6.84697021,146.05,146.02,25.25855006]
[1746648247844,25.25855006,146.04,146.0,25.25855006]
[1746648248020,25.25855006,146.04,145.99,25.25855006]
[1746648248344,23.96439574,146.05,145.98,25.25855006]
[1746648248345,25.25855006,146.02,145.98,25.25855006]
[1746648248710,25.25855006,146.01,145.97,25.25855006]
[1746648249020,6.84931506,146.0,145.96,25.25855006]
[1746648249228,32.10786512,146.0,145.96,25.25855006]
[1746648249410,6.84931506,146.0,145.96,51.25855006]
[1746648251032,6.84931506,146.0,145.97,25.25855006]
[1746648251229,6.84790796,146.03,145.99,25.25855006]
[1746648251428,6.84790796,146.03,146.02,25.25855006]
[1746648251616,6.84790796,146.03,146.01,25.25855006]
[1746648252537,23.9664796,146.04,146.01,25.25855006]
[1746648252830,49.22502966,146.04,146.0,25.25855006]
[1746648253433,25.25855006,146.02,145.98,25.25855006]
[1746648253930,25.25855006,146.03,145.98,25.25855006]
[1746648254232,25.25855006,146.03,145.99,25.25855006]
[1746648254443,25.25855006,146.01,145.97,51.25855006]
[1746648254735,6.84931506,146.0,145.97,25.25855006]
[1746648254920,49.23115279,146.0,145.96,51.25855006]
[1746648255122,25.25855006,145.99,145.96,26.0]
[1746648255316,25.25855006,145.98,145.93,24.95324886]
[1746648255641,25.25855006,145.97,145.93,25.25855006]
[1746648256633,6.8511921,145.96,145.95,25.25855006]
[1746648257216,6.8511921,145.96,145.94,25.25855006]
[1746648260228,6.8511921,145.96,145.94,25.25855006]
[1746648260745,6.85072275,145.97,145.94,25.25855006]
[1746648261349,6.84931506,146.0,145.96,25.25855006]
[1746648261518,23.97260273,146.0,145.97,25.25855006]
[1746648261842,23.97260273,146.0,145.98,25.25855006]
[1746648262543,23.97260273,146.0,145.94,0.14216157]
[1746648262544,6.84931506,146.0,145.99,25.25855006]
[1746648262740,49.22786932,146.02,145.98,25.25855006]
[1746648262946,25.25855006,146.01,145.97,25.25855006]
[1746648264234,25.25855006,146.01,145.96,51.25855006]
[1746648264423,25.25855006,145.99,145.94,51.25855006]
[1746648264624,25.25855006,145.99,145.95,25.25855006]
[1746648264841,6.85025345,145.98,145.95,25.25855006]
[1746648265232,6.85025345,145.98,145.96,25.25855006]
[1746648268563,23.9742448,145.99,145.95,25.25855006]
[1746648268730,25.25855006,145.98,145.94,51.25855006]
[1746648269232,25.25855006,145.97,145.94,26.0]
[1746648269448,25.25855006,145.96,145.92,25.25855006]
[1746648271038,6.85166152,145.95,145.92,25.25855006]
[1746648271342,6.85166152,145.95,145.93,25.25855006]
[1746648271838,6.85072275,145.97,145.94,25.25855006]
[1746648272033,6.85072275,145.97,145.95,25.25855006]
[1746648272229,6.85072275,145.97,145.94,25.25855006]
[1746648272430,23.97752962,145.97,145.93,25.25855006]
[1746648272639,25.25855006,145.96,145.93,26.0]
[1746648272838,49.23607968,145.97,145.93,26.0]
[1746648273036,49.23607968,145.97,145.93,51.25855006]
[1746648273238,23.97752962,145.97,145.93,51.25855006]
[1746648274741,49.23607968,145.97,145.93,51.25855006]
[1746648274945,25.25855006,145.96,145.92,25.25855006]
[1746648275559,32.11021158,145.95,145.91,51.25855006]
[1746648277272,6.85166152,145.95,145.92,25.25855006]
[1746648278241,6.85166152,145.95,145.93,25.25855006]
[1746648278439,23.98081533,145.95,145.92,25.25855006]
[1746648278740,23.98081533,145.95,145.91,26.0]
[1746648278741,25.25855006,145.94,145.89,31.35205006]
[1746648278974,25.25855006,145.94,145.9,25.25855006]
[1746648279170,25.25855006,145.93,145.89,25.25855006]
[1746648280047,6.85307017,145.92,145.89,25.25855006]
[1746648281071,49.24429566,145.92,145.88,26.0]
[1746648281367,25.25855006,145.9,145.86,25.25855006]
[1746648281663,23.9857456,145.92,145.86,25.25855006]
[1746648281664,25.25855006,145.91,145.86,25.25855006]
[1746648281842,25.25855006,145.91,145.87,25.25855006]
[1746648282161,6.85400959,145.9,145.87,25.25855006]
[1746648283364,6.85400959,145.9,145.86,25.25855006]
[1746648283365,49.24758363,145.9,145.86,25.25855006]
[1746648283584,25.25855006,145.89,145.85,51.25855006]
[1746648284383,6.85494927,145.88,145.85,51.25855006]
[1746648286101,6.85494927,145.88,145.86,25.25855006]
[1746648286384,49.24922796,145.89,145.85,51.25855006]
[1746648287384,49.24922796,145.89,145.85,25.25855006]
[1746648287560,25.25855006,145.88,145.84,25.25855006]
[1746648288383,25.25855006,145.85,145.81,25.25855006]
[1746648288603,25.25855006,145.84,145.79,50.50779892]
[1746648288767,25.25855006,145.84,145.79,31.85815006]
[1746648288974,25.25855006,145.84,145.79,57.85815006]
[1746648289277,25.25855006,145.84,145.8,25.25855006]